bitfinex/quotes_ETHUSD_20250801
["timestamp","ask_amount","ask_price","bid_price","bid_amount"]
[1754066487569,0.1392,3600.9,3600.8,0.002]
[1754066488386,4.694,3601.1,3600.8,0.4682]
[1754066488585,0.1392,3601.0,3600.8,0.9428]
[1754066489282,0.1392,3601.0,3600.8,3.71994965]
[1754066489586,0.1392,3601.0,3600.8,0.9428]
[1754066490092,0.1392,3601.0,3600.9,3.2432835]
[1754066490301,4.686,3601.3,3600.9,3.7178835]
[1754066490503,4.682,3601.5,3601.0,0.4662]
[1754066490711,4.684,3601.5,3601.1,0.4662]
[1754066490871,7.46069008,3601.5,3600.8,2.77911487]
[1754066491071,0.1392,3601.2,3600.9,2.77707932]
[1754066491403,0.1392,3601.2,3600.8,0.002]
[1754066492380,0.1392,3601.0,3600.8,2.7791606]
[1754066492586,4.684,3601.5,3601.1,2.77687386]
[1754066492784,0.1392,3601.4,3601.2,3.24297589]
[1754066492989,4.8192,3601.4,3601.2,0.4662]
[1754066493323,2.7768487,3601.3,3600.9,0.1392]
[1754066493620,4.97036236,3601.4,3600.8,0.002]
[1754066493788,0.1392,3601.2,3600.8,0.002]
[1754066494194,2.77697484,3601.1,3600.8,0.002]
[1754066494376,0.1392,3600.9,3600.8,0.002]
[1754066495382,0.29036236,3601.4,3600.8,3.24536063]
[1754066495576,0.4593,3602.0,3600.8,3.24536063]
[1754066495577,0.1392,3601.2,3600.8,3.71996063]
[1754066495777,0.1392,3601.2,3601.0,2.77699559]
[1754066495974,4.669,3601.3,3601.1,2.91612927]
[1754066496179,4.669,3601.3,3601.1,0.6054]
[1754066496684,0.9011,3601.2,3599.5,0.4662]
[1754066496883,0.9011,3601.1,3599.5,0.4662]
[1754066497099,2.77762391,3600.2,3599.5,0.4662]
[1754066497299,4.698,3600.2,3599.6,2.7780355]
[1754066497478,7.47563522,3600.2,3599.5,0.4662]
[1754066497680,2.7778394,3600.0,3599.2,2.77834634]
[1754066497888,2.77801816,3599.7,3599.0,3.24469987]
[1754066498224,2.77801041,3599.7,3599.0,0.4662]
[1754066498429,2.77801041,3599.7,3599.0,3.24469281]
[1754066498780,7.47209916,3599.6,3599.0,0.4662]
[1754066499082,4.694,3599.6,3599.0,0.4662]
[1754066499335,1.10476502,3601.0,3599.6,2.77808645]
[1754066499628,2.77751804,3600.4,3599.7,0.4662]
[1754066499827,2.77774324,3600.1,3599.3,0.55]
[1754066499987,4.689,3600.3,3599.7,2.77793506]
[1754066500190,0.9011,3601.2,3599.8,0.4662]
[1754066500505,0.9011,3601.2,3599.9,0.4746]
[1754066500506,2.77723623,3600.8,3599.9,0.4746]
[1754066500709,2.77709216,3600.9,3600.0,2.77777413]
[1754066500880,4.687,3600.8,3599.9,0.4746]
[1754066501082,2.77754752,3600.3,3599.8,0.4662]
[1754066501396,3.24596117,3600.7,3599.5,0.55]
[1754066501705,1.663,3601.5,3600.1,2.77763973]
[1754066501706,4.686,3600.6,3600.1,2.77763973]
[1754066501913,2.77723941,3600.7,3600.1,2.77763973]
[1754066502116,4.683,3600.5,3600.2,0.4662]
[1754066502325,2.77701985,3601.0,3600.3,2.77753521]
[1754066502485,0.4418,3601.3,3600.3,0.4662]
[1754066502832,7.45914214,3600.9,3600.3,3.24374093]
[1754066503195,2.77728761,3600.7,3600.0,2.77771998]
[1754066503402,2.77723775,3600.7,3600.0,2.77771998]
[1754066503599,4.68,3600.8,3599.9,0.4662]
[1754066503794,0.4418,3601.3,3600.5,2.77736729]
[1754066504130,2.77701074,3601.0,3600.3,2.77754192]
[1754066504427,4.676,3600.9,3600.5,2.77732481]
[1754066504631,7.45309807,3600.9,3600.1,1.4908]
[1754066504933,7.45310322,3600.9,3600.1,0.9408]
[1754066505127,4.676,3600.9,3600.3,2.77754166]
[1754066505285,4.676,3600.9,3600.4,2.77746466]
[1754066505485,4.676,3600.9,3600.5,0.4994]
[1754066505728,3.23600744,3601.4,3600.5,3.27676954]
[1754066506043,7.44777542,3601.3,3600.6,0.4994]
[1754066506180,4.671,3601.3,3600.7,2.77722201]
[1754066506515,7.44777632,3601.3,3600.7,2.77722201]
[1754066506715,0.1392,3601.1,3600.8,2.77715179]
[1754066507025,4.666,3601.3,3601.0,2.77695308]
[1754066507236,4.666,3601.3,3601.1,0.4994]
[1754066507527,0.1392,3601.4,3601.1,0.4994]
[1754066507528,4.8042,3601.4,3601.1,0.4994]
[1754066507737,4.8042,3601.4,3601.0,2.77699193]
[1754066508097,4.8042,3601.4,3601.0,0.4994]
[1754066508305,4.8042,3601.4,3601.1,0.4994]
[1754066508520,0.1392,3601.4,3601.1,0.4994]
[1754066508717,4.8012,3601.4,3601.1,0.4994]
[1754066509781,0.1392,3601.4,3601.2,0.9686]
[1754066509982,4.7962,3601.4,3601.3,3.74537505]
[1754066510186,4.657,3601.4,3601.3,3.74537505]
[1754066510386,4.654,3601.6,3601.3,3.74533071]
[1754066510718,2.77669795,3601.4,3601.3,0.1392]
[1754066510888,2.77678517,3601.3,3600.9,0.002]
[1754066511089,1.11745092,3601.3,3600.9,0.002]
[1754066511304,3.89428879,3601.3,3600.9,0.002]
[1754066511501,2.77693305,3601.1,3600.9,0.002]
[1754066511794,4.659,3601.1,3600.9,0.002]
[1754066512016,4.659,3601.1,3600.9,2.77908316]
[1754066512213,4.659,3601.1,3600.9,0.002]
[1754066512417,0.001,3601.5,3601.0,2.77695561]
[1754066512735,4.656,3601.2,3600.9,0.4712]
[1754066513081,0.001,3601.5,3601.0,0.4994]
[1754066513235,4.655,3601.3,3601.0,0.9686]
[1754066513422,4.652,3601.4,3601.0,0.4994]
[1754066514329,4.652,3601.4,3600.9,0.002]
[1754066514330,7.42875437,3601.4,3600.9,0.002]
[1754066514531,0.9671,3601.3,3600.9,0.002]
[1754066514735,2.77700638,3601.0,3600.9,0.002]
[1754066515336,3.24500638,3601.0,3600.9,0.002]
[1754066515487,3.74410638,3601.0,3600.9,0.002]
[1754066516739,7.42200638,3601.0,3600.9,0.002]
[1754066517451,1.02063145,3601.4,3600.9,0.002]
[1754066517755,0.001,3601.5,3600.9,0.002]
[1754066517756,4.645,3601.3,3600.9,0.002]
[1754066518060,7.421789,3601.3,3600.9,0.002]
[1754066518207,2.77685216,3601.2,3600.9,0.002]
[1754066518412,0.001,3601.5,3600.9,0.002]
[1754066518657,4.639,3601.4,3600.9,0.002]
[1754066519026,0.001,3601.5,3601.0,0.9686]
[1754066519224,4.643,3601.4,3601.1,0.9686]
[1754066519549,4.643,3601.4,3601.3,2.77677505]
[1754066519752,0.001,3601.5,3601.4,2.77669795]
[1754066520261,0.001,3601.5,3601.4,3.74529795]
[1754066520561,0.001,3601.5,3601.4,4.29529795]
[1754066520778,0.001,3601.5,3601.4,7.97527829]
[1754066520985,1e-08,3601.5,3601.4,8.08671132]
[1754066521629,0.001,3601.9,3601.8,6.32638958]
[1754066522031,0.001,3601.9,3601.8,7.29498958]
[1754066522462,0.001,3601.9,3601.8,7.43418958]
[1754066522664,0.001,3601.9,3601.8,0.1392]
[1754066522831,0.001,3601.9,3601.8,3.82578958]
[1754066523037,0.001,3601.9,3601.8,4.43418958]
[1754066523237,0.001,3601.9,3601.8,4.46195347]
[1754066523455,0.001,3601.9,3601.8,4.43418958]
[1754066524168,0.001,3601.9,3601.8,11.39068352]
[1754066524382,0.001,3601.9,3601.8,14.52988352]
[1754066525277,4.634,3603.0,3602.5,0.55]
[1754066525582,6.675,3603.7,3602.7,0.55]
[1754066525747,4.636,3603.4,3602.7,0.55]
[1754066525947,4.636,3603.4,3603.1,2.77532904]
[1754066526151,11.309,3603.7,3603.3,0.1384]
[1754066526350,2.77522151,3603.4,3602.0,0.4994]
[1754066526569,2.77548971,3603.0,3602.3,2.77594793]
[1754066526892,2.77548971,3603.0,3602.2,2.77602914]
[1754066526893,5.6021,3603.0,3602.2,2.77602914]
[1754066527193,5.6021,3603.0,3602.2,2.91522914]
[1754066527194,0.1384,3602.7,3602.2,2.91522914]
[1754066527397,2.77585786,3602.5,3602.2,0.1392]
[1754066527676,2.77585786,3602.5,3601.6,10.37162441]
[1754066527677,0.9671,3602.6,3601.6,7.59509394]
[1754066527883,2.77597853,3602.4,3601.8,3.32637002]
[1754066528249,2.77597853,3602.4,3601.8,0.55]
[1754066528390,0.1384,3602.4,3601.9,2.91549871]
[1754066528592,2.91433356,3602.4,3601.9,0.1392]
[1754066528895,0.1384,3602.4,3601.9,2.9155122]
[1754066529103,0.1384,3602.4,3601.9,0.1392]
[1754066529405,0.9671,3602.3,3601.7,2.91565527]
[1754066529565,3.74311016,3602.3,3601.7,2.91565527]
[1754066529766,0.9671,3602.3,3601.7,0.1392]
[1754066529993,0.1392,3602.2,3601.7,0.1392]
[1754066530297,2.91529119,3602.2,3601.7,0.1392]
[1754066530468,0.1392,3602.2,3601.7,2.91566009]
[1754066530677,0.1392,3602.2,3601.7,0.1392]
[1754066531211,0.001,3602.8,3601.8,1.07716389]
[1754066531355,0.001,3602.8,3602.2,7.64569394]
[1754066531558,0.001,3602.8,3602.7,2.775696]
[1754066531787,0.001,3602.8,3602.6,0.1384]
[1754066531992,0.001,3602.8,3602.7,3.744296]
[1754066532200,0.001,3602.8,3602.7,4.294296]
[1754066532964,0.001,3602.8,3602.7,4.32205296]
[1754066533164,0.001,3602.8,3602.7,5.04567664]
[1754066533393,0.001,3602.8,3602.7,5.01791968]
[1754066533776,0.001,3602.8,3602.7,0.55]
[1754066533996,0.001,3602.8,3602.7,3.325696]
[1754066534300,0.001,3602.8,3602.6,0.1384]
[1754066534596,0.001,3602.8,3602.7,2.775696]
[1754066534807,0.001,3602.8,3602.7,4.294296]
[1754066534957,0.001,3602.8,3602.7,4.432696]
[1754066535374,0.001,3602.8,3602.7,5.15354796]
[1754066535595,0.001,3603.7,3603.6,3.32500277]
[1754066536004,0.001,3603.7,3603.6,0.1384]
[1754066536165,2.7752401,3603.3,3602.7,0.1384]
[1754066536365,0.4797,3603.2,3600.6,0.13981929]
[1754066536665,0.1384,3602.7,3601.6,2.77649075]
[1754066536884,2.91536724,3602.1,3601.6,0.1392]
[1754066537096,0.1392,3602.1,3601.6,0.1392]
[1754066537759,2.91537873,3602.1,3601.6,0.1392]
[1754066537966,2.91538549,3602.1,3601.6,0.1392]
[1754066538486,0.5826,3602.1,3601.6,0.1392]
[1754066538679,2.77625932,3602.0,3601.5,0.1392]
[1754066538878,1.0623,3602.1,3601.5,0.1392]
[1754066539182,2.77638958,3601.8,3601.4,0.1392]
[1754066539386,0.1392,3601.9,3601.4,0.1392]
[1754066540002,0.9231,3601.8,3601.4,0.1392]
[1754066540297,0.9231,3601.8,3601.1,2.77692698]
[1754066540496,0.1392,3601.5,3601.0,2.77698963]
[1754066541100,0.1392,3601.5,3601.1,2.77690646]
[1754066541401,0.1392,3601.5,3601.2,2.77683223]
[1754066541699,0.1392,3601.5,3601.1,2.7769079]
[1754066542197,0.1392,3601.5,3601.3,2.77670243]
[1754066542365,4.7462,3601.8,3601.3,0.1392]
[1754066543365,3.6995759,3601.7,3600.9,0.002]
[1754066543572,0.1392,3601.5,3601.0,0.1392]
[1754066543986,0.1392,3601.5,3601.0,2.91617231]
[1754066544180,2.77663627,3601.5,3601.0,0.1392]
[1754066544387,0.1392,3601.3,3600.9,2.77907091]
[1754066544588,0.1392,3601.3,3600.9,0.002]
[1754066544803,0.1392,3601.3,3601.0,2.77700178]
[1754066545128,4.601,3601.2,3600.9,0.002]
[1754066545275,0.1392,3601.1,3600.9,0.002]
[1754066546592,2.91615132,3601.1,3600.9,0.002]
[1754066546801,0.1392,3601.1,3600.9,0.002]
[1754066546970,2.91614016,3601.1,3600.9,0.002]
[1754066547169,2.77700638,3601.0,3600.9,0.002]
[1754066547413,0.1392,3601.1,3600.9,0.002]
[1754066547616,2.77700638,3601.0,3600.9,0.002]
[1754066547790,2.91615058,3601.1,3600.9,0.002]
[1754066548106,0.1392,3601.1,3600.9,0.002]
[1754066548473,2.77700638,3601.0,3600.9,0.002]
[1754066548680,3.70010638,3601.0,3600.9,0.002]
[1754066548976,4.7282,3601.1,3600.9,0.002]
[1754066549574,4.586,3601.2,3601.1,2.77692927]
[1754066549773,4.586,3601.2,3601.1,0.8883]
[1754066549978,4.586,3601.2,3600.9,0.1412]
[1754066550216,4.586,3601.2,3600.9,0.002]
[1754066550419,0.1392,3601.0,3600.9,0.002]
[1754066550774,4.586,3601.1,3600.9,0.002]
[1754066551004,7.3629887,3601.1,3600.9,0.002]
[1754066551211,0.1392,3601.0,3600.9,0.002]
[1754066551914,0.1392,3601.0,3600.9,3.2355835]
[1754066552134,0.1392,3601.0,3600.9,3.6673835]
[1754066552410,0.4797,3602.1,3600.9,3.6673835]
[1754066552411,0.4797,3602.1,3601.3,2.77674537]
[1754066552628,0.1392,3601.5,3601.4,2.77669795]
[1754066552918,4.581,3601.6,3601.5,2.77662085]
[1754066553132,0.1384,3602.5,3602.1,2.77610603]
[1754066553281,0.1384,3602.5,3602.2,0.4565]
[1754066553282,4.582,3602.4,3602.2,0.4565]
[1754066553682,4.582,3602.4,3602.2,3.23257574]
[1754066553892,0.1384,3602.5,3602.1,0.55]
[1754066554097,0.1384,3602.5,3602.3,1.0275]
[1754066554098,4.58,3602.5,3602.3,1.0275]
[1754066554294,4.58,3602.5,3602.4,3.66422715]
[1754066554707,6.671,3603.5,3602.4,3.66422715]
[1754066554708,4.578,3602.9,3602.8,2.77560059]
[1754066554901,0.1384,3603.1,3602.8,0.8883]
[1754066555190,4.58,3603.2,3602.8,1.0267]
[1754066555698,4.58,3603.2,3602.8,0.1384]
[1754066555898,0.58949653,3603.7,3602.9,3.23198963]
[1754066555899,2.92104376,3603.7,3602.9,3.23198963]
[1754066556104,0.1384,3603.4,3602.9,3.37038963]
[1754066556319,0.1384,3603.4,3603.0,2.77545181]
[1754066556491,0.1384,3603.4,3602.4,0.55]
[1754066556492,0.9231,3603.3,3601.8,0.4565]
[1754066556688,0.9231,3603.2,3601.5,2.77662085]
[1754066556921,2.77576719,3602.7,3601.2,0.55]
[1754066557122,7.36277514,3602.6,3601.6,0.8883]
[1754066557332,4.586,3602.5,3601.6,0.8883]
[1754066557528,4.586,3602.5,3601.1,0.4318]
[1754066557704,2.77646155,3601.8,3601.1,0.4565]
[1754066558026,7.36248023,3601.7,3601.1,0.4565]
[1754066558192,7.36158698,3601.6,3600.9,0.002]
[1754066558394,4.585,3601.5,3600.9,2.77903311]
[1754066558596,4.585,3601.5,3601.0,0.55]
[1754066558902,4.585,3601.5,3601.1,0.4565]
[1754066559101,4.585,3601.5,3600.9,0.002]
[1754066559431,4.583,3601.5,3601.0,2.7769475]
[1754066559733,4.583,3601.5,3600.9,0.002]
[1754066559905,2.77685631,3601.2,3600.9,0.002]
[1754066560237,2.77679772,3601.3,3600.9,0.002]
[1754066560405,4.58,3601.2,3600.9,0.002]
[1754066560603,4.58,3601.2,3601.0,0.4565]
[1754066560903,2.77672401,3601.4,3600.9,0.002]
[1754066560904,4.579,3601.4,3601.1,0.8883]
[1754066561103,3.14594905,3602.3,3601.1,0.4318]
[1754066561434,2.77652756,3601.7,3600.9,0.4585]
[1754066561636,0.9231,3602.2,3601.0,1.37632367]
[1754066561927,2.77628536,3602.0,3601.3,3.32675851]
[1754066562128,2.77636491,3601.9,3601.2,0.55]
[1754066562444,0.4434,3602.6,3601.2,0.55]
[1754066562445,4.575,3601.8,3601.2,3.32683089]
[1754066562735,2.77608128,3602.2,3601.2,2.77683348]
[1754066562942,4.574,3602.1,3601.5,2.77655721]
[1754066563264,0.4434,3602.8,3601.5,0.4565]
[1754066563527,2.77593076,3602.4,3601.5,3.66489865]
[1754066563702,2.77594471,3602.4,3601.5,0.6883]
[1754066563909,2.77616125,3602.1,3601.5,0.6883]
[1754066564233,2.77616125,3602.1,3601.5,1.32722055]
[1754066564537,4.569,3602.2,3601.6,3.32652602]
[1754066564737,4.569,3602.3,3601.6,0.55]
[1754066564892,7.34507111,3602.3,3601.8,0.55]
[1754066565096,4.569,3602.3,3601.8,0.55]
[1754066565597,2.77578711,3602.6,3601.8,0.55]
[1754066565598,2.77577328,3602.6,3601.9,3.24008351]
[1754066565864,7.34069957,3602.7,3602.2,0.55]
[1754066566063,7.34071111,3602.7,3602.1,0.55]
[1754066566270,4.565,3602.7,3602.1,0.55]
[1754066566467,4.565,3602.7,3602.4,0.1384]
[1754066566665,7.34070414,3602.7,3602.4,0.1384]
[1754066566887,4.565,3602.7,3602.4,0.1384]
[1754066567051,0.1384,3602.9,3602.4,0.6022]
[1754066567234,6.672,3603.0,3602.0,0.02776235]
[1754066567435,2.77565869,3604.1,3602.7,0.1384]
[1754066567634,0.1384,3603.4,3602.6,3.32577305]
[1754066567856,4.561,3603.3,3603.2,2.77529454]
[1754066568057,4.70710783,3603.7,3603.4,0.1384]
[1754066568273,4.70710783,3603.7,3603.5,0.1384]
[1754066568444,4.562,3603.7,3603.5,0.1384]
[1754066568647,0.001,3603.7,3603.6,4.25735279]
[1754066568847,0.001,3603.7,3603.6,3.35275279]
[1754066569049,0.001,3603.7,3603.6,7.25735279]
[1754066569370,0.001,3603.7,3603.6,7.36800277]
[1754066569548,0.001,3603.7,3603.6,7.65620653]
[1754066572459,0.001,3604.1,3604.0,6.32469478]
[1754066572635,0.001,3604.1,3604.0,17.97138872]
[1754066572836,0.001,3604.1,3604.0,19.01438872]
[1754066574461,0.001,3605.5,3605.2,2.77374383]
[1754066574662,0.001,3605.5,3605.4,3.32361735]
[1754066574974,0.001,3605.5,3605.4,6.46201735]
[1754066575397,0.001,3605.5,3605.4,7.36661735]
[1754066576599,0.001,3605.5,3605.4,7.22821735]
[1754066576773,0.001,3605.5,3605.4,8.00044749]
[1754066577173,6.87773016,3608.2,3606.6,2.77263183]
[1754066577396,6.87773016,3608.2,3605.9,2.77315941]
[1754066577397,0.4385,3607.1,3606.4,2.77279434]
[1754066577576,0.4385,3607.1,3606.0,3.55]
[1754066577779,0.4385,3607.1,3606.2,0.55]
[1754066577780,2.7724725,3606.9,3606.2,0.55]
[1754066577976,0.64685721,3606.9,3606.2,0.55]
[1754066578178,0.4853,3607.0,3606.1,3.32307095]
[1754066578384,0.4853,3606.9,3606.3,3.32287108]
[1754066578805,0.4853,3606.9,3606.4,2.77284091]
[1754066579096,0.4853,3606.9,3606.0,0.55]
[1754066579300,3.21081767,3607.1,3606.3,2.7728698]
[1754066579597,0.64682775,3607.0,3606.4,2.7728331]
[1754066579795,3.41923888,3607.0,3606.3,2.77290838]
[1754066579997,2.77262323,3606.7,3606.1,0.55]
[1754066580199,2.77262323,3606.7,3605.9,2.77317479]
[1754066580200,0.9238,3606.9,3605.9,0.55]
[1754066580513,1.08086277,3606.8,3605.7,3.0]
[1754066580816,2.77279548,3606.5,3605.8,2.77330694]
[1754066581017,2.77294333,3606.3,3605.6,2.77346162]
[1754066581182,4.546,3606.8,3605.8,0.55]
[1754066581384,0.4546,3606.8,3605.9,0.9046]
[1754066581584,0.9238,3606.7,3605.3,0.4638]
[1754066581805,3.6964945,3606.6,3604.3,5.0088]
[1754066581980,2.77318774,3606.0,3604.3,8.2240117]
[1754066582195,5.58891914,3605.9,3605.4,2.7735481]
[1754066582398,0.4853,3605.9,3605.6,2.77339691]
[1754066582600,7.32120473,3606.0,3605.5,3.0]
[1754066582795,0.4853,3605.8,3605.3,0.55]
[1754066583121,0.4853,3605.8,3605.5,2.77353511]
[1754066583417,0.4853,3605.8,3605.4,2.77358935]
[1754066583585,4.548,3606.0,3605.3,0.55]
[1754066583783,4.548,3606.0,3605.1,3.55]
[1754066583784,4.548,3606.0,3605.2,0.55]
[1754066583986,0.9238,3606.2,3605.2,1.33062055]
[1754066584323,3.25837894,3606.1,3605.2,2.7737589]
[1754066584523,0.9238,3606.1,3604.9,2.77395371]
[1754066584685,0.9238,3606.0,3604.8,2.77401774]
[1754066584883,2.77359151,3605.5,3604.9,3.0]
[1754066585088,2.77369428,3605.3,3604.6,2.77422931]
[1754066585320,0.4853,3605.2,3604.0,2.77464792]
[1754066585496,4.9825,3605.4,3604.3,3.0]
[1754066585818,4.9825,3605.4,3604.7,2.77415419]
[1754066585819,7.7561442,3605.4,3604.7,2.77415419]
[1754066585984,3.2121442,3605.4,3604.7,2.77415419]
[1754066586181,0.4853,3605.5,3604.6,0.49154232]
[1754066586384,0.4853,3605.5,3604.9,2.77396185]
[1754066586586,0.6237,3605.5,3605.1,2.77382834]
[1754066586889,0.6237,3605.5,3605.0,0.1384]
[1754066587203,0.6237,3605.5,3605.0,2.91232253]
[1754066587406,0.6237,3605.5,3605.1,2.77384815]
[1754066587608,0.6237,3605.5,3605.0,0.1384]
[1754066587609,0.6237,3605.5,3605.0,2.91230232]
[1754066587818,0.6237,3605.5,3605.1,2.77384404]
[1754066588026,0.6237,3605.5,3605.0,2.91230358]
[1754066588182,0.6237,3605.5,3605.1,2.77384535]
[1754066588612,0.6237,3605.5,3605.0,0.1384]
[1754066588613,0.6237,3605.5,3605.0,2.91230554]
[1754066588852,0.6237,3605.5,3605.1,2.77384484]
[1754066589224,0.6237,3605.5,3605.0,0.1384]
[1754066589551,0.6237,3605.5,3605.1,2.77383932]
[1754066590237,4.529,3605.5,3605.4,2.77361735]
[1754066590456,0.4853,3606.2,3605.5,2.77349622]
[1754066590457,4.529,3605.8,3605.5,2.77349622]
[1754066590625,4.529,3605.8,3605.6,2.77345434]
[1754066591014,4.529,3605.8,3605.4,3.37577244]
[1754066591215,0.4853,3605.7,3605.4,0.1384]
[1754066591516,4.529,3605.8,3605.3,0.1384]
[1754066591717,0.4853,3605.7,3605.4,2.77361611]
[1754066591911,4.6674,3605.8,3605.4,2.77361611]
[1754066592171,4.6674,3605.8,3605.5,2.7735378]
[1754066592352,6.666,3606.4,3605.6,2.77343826]
[1754066592553,0.1384,3606.0,3605.6,2.77343826]
[1754066592751,4.524,3605.9,3605.6,2.77343826]
[1754066593160,0.1384,3606.0,3605.6,2.77344202]
[1754066593348,4.6604,3606.0,3605.6,2.77344202]
[1754066593545,4.6604,3606.0,3605.7,2.77338308]
[1754066593748,4.6604,3606.0,3605.5,0.1384]
[1754066594346,4.6604,3606.0,3605.5,2.91191952]
[1754066594550,2.77328615,3605.9,3605.5,0.1384]
[1754066594749,1.71569862,3605.9,3605.5,0.1384]
[1754066594960,0.1384,3605.6,3605.0,0.1384]
[1754066595165,2.77362907,3605.4,3604.1,3.238375]
[1754066595474,4.517,3605.5,3604.5,3.0]
[1754066595676,4.518,3605.6,3605.2,2.77371898]
[1754066595902,4.518,3605.6,3605.3,0.1384]
[1754066596240,4.518,3605.6,3605.3,2.91204268]
[1754066596441,0.1384,3605.8,3605.5,2.77348559]
[1754066596747,4.6574,3605.8,3605.3,0.70698685]
[1754066597083,4.517,3605.9,3605.5,2.91192297]
[1754066597288,4.9508,3605.9,3605.5,0.1384]
[1754066597487,4.9508,3605.9,3605.0,0.4747]
[1754066597488,2.77362827,3605.4,3605.0,0.1384]
[1754066597790,2.91190955,3605.6,3605.0,0.1384]
[1754066597791,2.77370695,3605.3,3605.0,0.1384]
[1754066597962,2.77358822,3605.5,3605.0,0.1384]
[1754066598289,2.77356307,3605.5,3605.0,0.1384]
[1754066598786,4.515,3605.4,3605.0,2.91227622]
[1754066598996,4.515,3605.4,3605.1,2.80153889]
[1754066599145,4.511,3605.5,3605.3,0.1384]
[1754066599647,0.4824,3605.4,3605.3,0.1384]
[1754066599853,2.77371725,3605.3,3605.0,0.1384]
[1754066600047,4.6494,3605.5,3605.0,0.1384]
[1754066600294,2.77384815,3605.1,3605.0,0.1384]
[1754066600495,2.77375678,3605.3,3605.0,0.1384]
[1754066600699,2.77375678,3605.3,3604.9,0.002]
[1754066600700,0.1384,3605.1,3604.9,0.002]
[1754066601207,4.511,3605.3,3604.9,0.002]
[1754066601692,0.4824,3605.0,3604.9,0.002]
[1754066602081,0.1384,3605.1,3604.9,0.002]
[1754066602656,0.1384,3605.5,3605.0,2.9123251]
[1754066602856,4.508,3605.4,3605.0,0.1384]
[1754066603056,0.1384,3605.5,3605.0,0.79872387]
[1754066603252,0.1384,3605.5,3605.1,0.4747]
[1754066603449,0.1384,3605.5,3605.0,2.94003664]
[1754066603450,4.509,3605.6,3605.0,0.02773925]
[1754066603654,4.509,3605.6,3605.2,0.1384]
[1754066603912,6.667,3606.4,3605.3,7.57039394]
[1754066604060,0.1384,3606.0,3605.5,0.1384]
[1754066604262,0.1384,3606.0,3605.5,2.91193248]
[1754066604461,0.1384,3606.0,3605.5,0.1384]
[1754066604697,0.1384,3606.0,3605.6,0.4747]
[1754066605007,0.1384,3606.0,3605.5,0.1384]
[1754066605867,0.1384,3606.0,3605.6,3.24816248]
[1754066606063,0.1384,3606.0,3605.7,0.9147]
[1754066606463,0.1384,3606.0,3605.6,3.15884112]
[1754066606669,4.502,3606.2,3605.7,2.77337682]
[1754066606987,6.667,3606.4,3605.8,0.6131]
[1754066607289,4.5,3606.3,3606.1,2.77302479]
[1754066607488,0.001,3606.4,3606.3,2.77292515]
[1754066607704,0.001,3606.4,3606.3,3.32292515]
[1754066607990,6.665,3607.7,3606.7,2.77261762]
[1754066608154,6.665,3607.7,3606.7,3.32261762]
[1754066608155,4.498,3607.3,3606.7,3.32261762]
[1754066608349,4.498,3607.3,3606.7,4.37571762]
[1754066608579,4.498,3607.3,3606.7,4.77621577]
[1754066609655,6.665,3607.7,3606.7,7.80394194]
[1754066609893,4.495,3607.7,3606.7,7.77621577]
[1754066610092,1e-08,3606.8,3606.7,7.77621577]
[1754066610389,1e-08,3606.8,3606.7,12.27121577]
[1754066611391,1e-08,3606.8,3606.7,20.01651777]
[1754066611602,4.497,3608.4,3607.6,3.55]
[1754066611910,0.6208,3608.8,3608.1,2.77146799]
[1754066612071,0.6208,3608.8,3607.3,4.497]
[1754066612072,4.497,3608.7,3607.2,0.44]
[1754066612256,2.77178759,3607.8,3607.1,3.0]
[1754066612591,0.4824,3608.0,3607.2,0.55]
[1754066612897,0.1384,3607.7,3607.2,0.1384]
[1754066613065,5.4232,3607.9,3607.3,0.55]
[1754066613066,0.4824,3607.9,3607.3,0.55]
[1754066613256,0.4824,3607.9,3607.5,0.1384]
[1754066613455,0.4824,3607.9,3607.6,0.55]
[1754066613456,3.25409698,3607.9,3607.6,0.55]
[1754066613657,0.4824,3607.9,3607.6,0.55]
[1754066613992,0.1384,3608.1,3607.6,0.55]
[1754066614290,2.77175315,3607.9,3607.6,0.55]
[1754066614598,3.25415315,3607.9,3607.6,0.55]
[1754066614972,0.1384,3608.1,3607.6,0.55]
[1754066615172,2.77130458,3608.5,3607.8,0.55]
[1754066615483,2.91009544,3607.9,3607.4,0.1384]
[1754066615687,0.1384,3607.9,3607.4,0.1384]
[1754066615883,0.6208,3607.9,3607.4,0.1384]
[1754066616270,0.4824,3607.9,3607.5,0.55]
[1754066616684,2.77173986,3607.9,3607.5,0.55]
[1754066616889,2.91007262,3608.0,3607.5,0.55]
[1754066617485,2.77163597,3608.0,3607.4,0.55]
[1754066617712,2.77171168,3607.9,3607.7,0.1384]
[1754066618007,2.77177227,3607.8,3607.7,0.1384]
[1754066618212,3.68797227,3607.8,3607.7,0.1384]
[1754066618455,4.503,3608.0,3607.7,0.1384]
[1754066618624,0.1384,3608.2,3607.8,0.55]
[1754066618625,4.503,3607.9,3607.8,0.55]
[1754066618784,4.503,3607.9,3607.8,3.55]
[1754066618972,4.503,3607.9,3607.4,0.55]
[1754066619178,4.503,3607.9,3607.6,0.55]
[1754066619408,4.507,3608.0,3607.7,0.1384]
[1754066619920,0.001,3607.9,3607.7,0.1384]
[1754066620135,0.001,3607.9,3607.8,1.71820737]
[1754066620282,1e-08,3608.5,3608.4,3.32131138]
[1754066620488,1e-08,3608.5,3608.4,7.26372449]
[1754066620707,1e-08,3608.5,3608.4,7.37441138]
[1754066620882,1e-08,3608.5,3608.4,3.6884]
[1754066621835,1e-08,3608.5,3608.4,3.0]
[1754066622035,1e-08,3608.5,3608.4,3.55]